[Event "Titled Tuesday Blitz August 22 Early 2023"]
[White "Zhu, Jiner"]
[Black "Reprintsev, Alexander"]
[WhiteFideId "8608059"]
[BlackFideId "14100541"]
[WhiteElo "2657"]
[BlackElo "2476"]
[Result "1-0"]
[Round "3"]
[TimeControl "180+1"]
[Date "2023.08.22"]
[WhiteClock "0:00:14"]
[BlackClock "0:00:07"]
[Board "99"]

1. Nf3 {[%clk 0:03:00]}  d5 {[%clk 0:02:57]} 2. g3 {[%clk 0:03:00]}  Nc6 {[%clk 0:02:57]} 3. Bg2 {[%clk 0:02:59]}  e5 {[%clk 0:02:56]} 4. d3 {[%clk 0:02:59]}  Bg4 {[%clk 0:02:55]} 5. O-O {[%clk 0:02:58]}  Qd7 {[%clk 0:02:49]} 6. c4 {[%clk 0:02:54]}  Nf6 {[%clk 0:02:36]} 7. cxd5 {[%clk 0:02:51]}  Nxd5 {[%clk 0:02:36]} 8. Bd2 {[%clk 0:02:47]}  Bh3 {[%clk 0:02:29]} 9. Nc3 {[%clk 0:02:47]}  Bxg2 {[%clk 0:02:28]} 10. Kxg2 {[%clk 0:02:48]}  Nb6 {[%clk 0:02:21]} 11. a3 {[%clk 0:02:44]}  a5 {[%clk 0:02:18]} 12. Rc1 {[%clk 0:02:43]}  Be7 {[%clk 0:02:18]} 13. Na4 {[%clk 0:02:33]}  O-O {[%clk 0:01:46]} 14. Nxb6 {[%clk 0:02:33]}  cxb6 {[%clk 0:01:46]} 15. Be3 {[%clk 0:02:29]}  b5 {[%clk 0:01:38]} 16. Nd2 {[%clk 0:02:10]}  Qd5+ {[%clk 0:01:34]} 17. Kg1 {[%clk 0:02:10]}  b4 {[%clk 0:01:23]} 18. a4 {[%clk 0:02:07]}  b5 {[%clk 0:01:18]} 19. Ne4 {[%clk 0:01:31]}  Nd4 {[%clk 0:01:11]} 20. Bxd4 {[%clk 0:01:29]}  exd4 {[%clk 0:01:09]} 21. Rc7 {[%clk 0:01:22]}  Rfe8 {[%clk 0:01:05]} 22. Qc2 {[%clk 0:01:03]}  b3 {[%clk 0:01:00]} 23. Qd2 {[%clk 0:00:34]}  bxa4 {[%clk 0:00:59]} 24. Ra1 {[%clk 0:00:32]}  a3 {[%clk 0:00:59]} 25. bxa3 {[%clk 0:00:31]}  a4 {[%clk 0:00:59]} 26. Qb2 {[%clk 0:00:29]}  Rac8 {[%clk 0:00:41]} 27. Rac1 {[%clk 0:00:26]}  Rxc7 {[%clk 0:00:39]} 28. Rxc7 {[%clk 0:00:27]}  f5 {[%clk 0:00:33]} 29. Nd2 {[%clk 0:00:27]}  Qd6 {[%clk 0:00:33]} 30. Rc4 {[%clk 0:00:23]}  Qxa3 {[%clk 0:00:32]} 31. Qxa3 {[%clk 0:00:24]}  Bxa3 {[%clk 0:00:31]} 32. Rxa4 {[%clk 0:00:25]}  Bb2 {[%clk 0:00:12]} 33. Nxb3 {[%clk 0:00:14]}  Rxe2 {[%clk 0:00:12]} 34. Nxd4 {[%clk 0:00:15]}  g6 {[%clk 0:00:07]} 35. Nxe2 {[%clk 0:00:14]} 1-0


[Site "https://www.chess.com"]

[Event "Titled Tuesday Blitz August 22 Early 2023"]
[White "Flynn, Jacob"]
[Black "Haug, Havard"]
[WhiteFideId "2509393"]
[BlackFideId "1547887"]
[WhiteElo "2472"]
[BlackElo "2646"]
[Result "1-0"]
[Round "3"]
[TimeControl "180+1"]
[Date "2023.08.22"]
[WhiteClock "0:00:11"]
[BlackClock "0:00:00"]
[Board "102"]

1. d4 {[%clk 0:03:00]}  Nf6 {[%clk 0:02:58]} 2. c4 {[%clk 0:03:01]}  e6 {[%clk 0:02:56]} 3. g3 {[%clk 0:03:01]}  d5 {[%clk 0:02:56]} 4. Bg2 {[%clk 0:03:01]}  c5 {[%clk 0:02:56]} 5. cxd5 {[%clk 0:03:01]}  exd5 {[%clk 0:02:57]} 6. Nf3 {[%clk 0:03:01]}  Nc6 {[%clk 0:02:57]} 7. O-O {[%clk 0:03:01]}  Be7 {[%clk 0:02:57]} 8. dxc5 {[%clk 0:03:01]}  Bxc5 {[%clk 0:02:57]} 9. a3 {[%clk 0:03:02]}  Ne4 {[%clk 0:02:56]} 10. b4 {[%clk 0:03:00]}  Be7 {[%clk 0:02:56]} 11. Bb2 {[%clk 0:03:01]}  Bf6 {[%clk 0:02:56]} 12. Bxf6 {[%clk 0:03:02]}  Qxf6 {[%clk 0:02:57]} 13. Ra2 {[%clk 0:02:55]}  O-O {[%clk 0:02:55]} 14. Qc1 {[%clk 0:02:48]}  Be6 {[%clk 0:02:52]} 15. Rc2 {[%clk 0:02:46]}  Rac8 {[%clk 0:02:49]} 16. Nbd2 {[%clk 0:02:45]}  Ne5 {[%clk 0:02:47]} 17. Nxe5 {[%clk 0:02:40]}  Qxe5 {[%clk 0:02:46]} 18. Nxe4 {[%clk 0:02:37]}  dxe4 {[%clk 0:02:43]} 19. Rxc8 {[%clk 0:02:36]}  Rxc8 {[%clk 0:02:44]} 20. Qe3 {[%clk 0:02:36]}  g6 {[%clk 0:02:38]} 21. Qxe4 {[%clk 0:02:29]}  Qxe4 {[%clk 0:02:36]} 22. Bxe4 {[%clk 0:02:29]}  b6 {[%clk 0:02:36]} 23. Bd3 {[%clk 0:02:22]}  Rc3 {[%clk 0:02:35]} 24. Ra1 {[%clk 0:02:22]}  Kg7 {[%clk 0:02:33]} 25. Kf1 {[%clk 0:02:22]}  Rb3 {[%clk 0:02:30]} 26. f3 {[%clk 0:02:12]}  Rb2 {[%clk 0:02:27]} 27. Kf2 {[%clk 0:02:12]}  h5 {[%clk 0:02:25]} 28. h4 {[%clk 0:02:11]}  Kf6 {[%clk 0:02:23]} 29. Ke3 {[%clk 0:02:11]}  Ke5 {[%clk 0:02:22]} 30. Rc1 {[%clk 0:02:07]}  Rb3 {[%clk 0:02:19]} 31. Ra1 {[%clk 0:01:54]}  Rc3 {[%clk 0:02:17]} 32. Kd2 {[%clk 0:01:46]}  Rc7 {[%clk 0:02:15]} 33. Rc1 {[%clk 0:01:42]}  Rd7 {[%clk 0:02:12]} 34. Ke3 {[%clk 0:01:41]}  Re7 {[%clk 0:02:11]} 35. a4 {[%clk 0:01:34]}  Bd7 {[%clk 0:02:01]} 36. a5 {[%clk 0:01:33]}  Kd6+ {[%clk 0:01:57]} 37. Kd4 {[%clk 0:01:30]}  Re8 {[%clk 0:01:50]} 38. axb6 {[%clk 0:01:28]}  axb6 {[%clk 0:01:51]} 39. Ra1 {[%clk 0:01:28]}  Rc8 {[%clk 0:01:44]} 40. Ra7 {[%clk 0:01:26]}  Rc1 {[%clk 0:01:34]} 41. Rb7 {[%clk 0:01:19]}  Rg1 {[%clk 0:00:58]} 42. Rxb6+ {[%clk 0:01:11]}  Ke7 {[%clk 0:00:52]} 43. Rb7 {[%clk 0:01:08]}  Kd6 {[%clk 0:00:51]} 44. b5 {[%clk 0:01:06]}  Rxg3 {[%clk 0:00:49]} 45. b6 {[%clk 0:01:02]}  g5 {[%clk 0:00:46]} 46. hxg5 {[%clk 0:00:56]}  Rxg5 {[%clk 0:00:43]} 47. Rb8 {[%clk 0:00:56]}  Rg1 {[%clk 0:00:43]} 48. Rh8 {[%clk 0:00:52]}  Kc6 {[%clk 0:00:33]} 49. Rh6+ {[%clk 0:00:49]}  Be6 {[%clk 0:00:30]} 50. f4 {[%clk 0:00:48]}  Kxb6 {[%clk 0:00:12]} 51. f5 {[%clk 0:00:48]}  Kc7 {[%clk 0:00:09]} 52. fxe6 {[%clk 0:00:47]}  fxe6 {[%clk 0:00:10]} 53. Rxh5 {[%clk 0:00:43]}  Kd6 {[%clk 0:00:11]} 54. Ra5 {[%clk 0:00:42]}  Rg4+ {[%clk 0:00:10]} 55. Be4 {[%clk 0:00:39]}  Rg1 {[%clk 0:00:10]} 56. Ra6+ {[%clk 0:00:39]}  Ke7 {[%clk 0:00:11]} 57. Bd3 {[%clk 0:00:37]}  Rg5 {[%clk 0:00:10]} 58. Bc4 {[%clk 0:00:36]}  Rg4+ {[%clk 0:00:10]} 59. Kc3 {[%clk 0:00:35]}  Rg3+ {[%clk 0:00:10]} 60. Kb4 {[%clk 0:00:34]}  Re3 {[%clk 0:00:09]} 61. Kc5 {[%clk 0:00:31]}  e5 {[%clk 0:00:06]} 62. Ra7+ {[%clk 0:00:29]}  Kf6 {[%clk 0:00:06]} 63. Rf7+ {[%clk 0:00:29]}  Kg6 {[%clk 0:00:06]} 64. Rf2 {[%clk 0:00:27]}  Kg5 {[%clk 0:00:06]} 65. Kd5 {[%clk 0:00:27]}  Kg6 {[%clk 0:00:05]} 66. Bd3+ {[%clk 0:00:25]}  Kg7 {[%clk 0:00:03]} 67. Rf5 {[%clk 0:00:21]}  e4 {[%clk 0:00:04]} 68. Re5 {[%clk 0:00:19]}  Kf6 {[%clk 0:00:01]} 69. Rxe4 {[%clk 0:00:18]}  Rh3 {[%clk 0:00:02]} 70. Rf4+ {[%clk 0:00:18]}  Ke7 {[%clk 0:00:01]} 71. Kd4 {[%clk 0:00:14]}  Rh5 {[%clk 0:00:01]} 72. Rf5 {[%clk 0:00:13]}  Rh4+ {[%clk 0:00:01]} 73. e4 {[%clk 0:00:14]}  Rh2 {[%clk 0:00:01]} 74. Bc4 {[%clk 0:00:14]}  Kd6 {[%clk 0:00:02]} 75. Rf6+ {[%clk 0:00:13]}  Ke7 {[%clk 0:00:02]} 76. Re6+ {[%clk 0:00:14]}  Kd7 {[%clk 0:00:02]} 77. Bd5 {[%clk 0:00:14]}  Rd2+ {[%clk 0:00:02]} 78. Ke5 {[%clk 0:00:15]}  Rh2 {[%clk 0:00:03]} 79. Rf6 {[%clk 0:00:15]}  Rh5+ {[%clk 0:00:04]} 80. Rf5 {[%clk 0:00:16]}  Rh4 {[%clk 0:00:04]} 81. Rf7+ {[%clk 0:00:16]}  Ke8 {[%clk 0:00:05]} 82. Ke6 {[%clk 0:00:12]}  Rh6+ {[%clk 0:00:01]} 83. Rf6 {[%clk 0:00:13]}  Rh5 {[%clk 0:00:01]} 84. Kd6 {[%clk 0:00:12]}  Rh7 {[%clk 0:00:01]} 85. e5 {[%clk 0:00:10]}  Rh8 {[%clk 0:00:01]} 86. Rg6 {[%clk 0:00:10]}  Kf8 {[%clk 0:00:01]} 87. Rg8+ {[%clk 0:00:09]}  Rxg8 {[%clk 0:00:01]} 88. Bxg8 {[%clk 0:00:09]}  Kxg8 {[%clk 0:00:01]} 89. Kd7 {[%clk 0:00:10]}  Kf8 {[%clk 0:00:00]} 90. e6 {[%clk 0:00:11]} 1-0


[Site "https://www.chess.com"]

[Event "Titled Tuesday Blitz August 22 Early 2023"]
[White "Hirneise, Jens"]
[Black "Tregubov, Pavel V."]
[WhiteFideId "24614734"]
[BlackFideId "4115341"]
[WhiteElo "2469"]
[BlackElo "2643"]
[Result "0-1"]
[Round "3"]
[TimeControl "180+1"]
[Date "2023.08.22"]
[WhiteClock "0:00:53"]
[BlackClock "0:01:11"]
[Board "103"]

1. d4 {[%clk 0:03:00]}  Nf6 {[%clk 0:02:59]} 2. c4 {[%clk 0:03:01]}  c5 {[%clk 0:02:56]} 3. d5 {[%clk 0:02:59]}  b5 {[%clk 0:02:56]} 4. cxb5 {[%clk 0:02:58]}  a6 {[%clk 0:02:57]} 5. b6 {[%clk 0:02:57]}  e6 {[%clk 0:02:54]} 6. Nc3 {[%clk 0:02:55]}  Nxd5 {[%clk 0:02:54]} 7. Nxd5 {[%clk 0:02:53]}  exd5 {[%clk 0:02:55]} 8. Qxd5 {[%clk 0:02:53]}  Nc6 {[%clk 0:02:55]} 9. e3 {[%clk 0:02:52]}  Be7 {[%clk 0:02:44]} 10. Bc4 {[%clk 0:02:42]}  O-O {[%clk 0:02:44]} 11. Nf3 {[%clk 0:02:42]}  Rb8 {[%clk 0:02:42]} 12. O-O {[%clk 0:02:41]}  Rxb6 {[%clk 0:02:34]} 13. Rd1 {[%clk 0:02:39]}  d6 {[%clk 0:02:34]} 14. Qe4 {[%clk 0:02:28]}  Bf6 {[%clk 0:02:25]} 15. Rb1 {[%clk 0:02:10]}  g6 {[%clk 0:02:24]} 16. Qd3 {[%clk 0:01:55]}  Nb4 {[%clk 0:02:17]} 17. Qe2 {[%clk 0:01:49]}  Qe7 {[%clk 0:02:06]} 18. e4 {[%clk 0:01:31]}  Re8 {[%clk 0:02:00]} 19. Re1 {[%clk 0:01:29]}  d5 {[%clk 0:01:52]} 20. exd5 {[%clk 0:01:23]}  Qxe2 {[%clk 0:01:52]} 21. Rxe2 {[%clk 0:01:22]}  Rxe2 {[%clk 0:01:52]} 22. Bxe2 {[%clk 0:01:23]}  Bf5 {[%clk 0:01:52]} 23. Ra1 {[%clk 0:01:20]}  Nc2 {[%clk 0:01:52]} 24. Rb1 {[%clk 0:01:20]}  Nd4 {[%clk 0:01:52]} 25. Nxd4 {[%clk 0:01:19]}  Bxb1 {[%clk 0:01:53]} 26. Nb3 {[%clk 0:01:15]}  Bxa2 {[%clk 0:01:50]} 27. Nxc5 {[%clk 0:01:15]}  Bxd5 {[%clk 0:01:18]} 28. Nxa6 {[%clk 0:01:08]}  Bxb2 {[%clk 0:01:16]} 29. Be3 {[%clk 0:01:08]}  Bd4 {[%clk 0:01:13]} 30. h3 {[%clk 0:00:59]}  Bxe3 {[%clk 0:01:11]} 31. fxe3 {[%clk 0:00:58]}  Rb2 {[%clk 0:01:12]} 32. Bf1 {[%clk 0:00:57]}  Rb1 {[%clk 0:01:12]} 33. Kf2 {[%clk 0:00:53]}  Rxf1+ {[%clk 0:01:11]} 0-1


[Site "https://www.chess.com"]

[Event "Titled Tuesday Blitz August 22 Early 2023"]
[White "Sipila, Vilka"]
[Black "KrokerGuy"]
[WhiteFideId "505455"]
[WhiteElo "2629"]
[BlackElo "2469"]
[Result "1-0"]
[Round "3"]
[TimeControl "180+1"]
[Date "2023.08.22"]
[WhiteClock "0:00:25"]
[BlackClock "0:00:00"]
[Board "104"]

1. Nc3 {[%clk 0:03:00]}  e5 {[%clk 0:02:59]} 2. Nf3 {[%clk 0:03:00]}  Nc6 {[%clk 0:02:59]} 3. d4 {[%clk 0:03:00]}  exd4 {[%clk 0:02:59]} 4. Nxd4 {[%clk 0:03:01]}  Nf6 {[%clk 0:02:58]} 5. Bg5 {[%clk 0:02:57]}  Be7 {[%clk 0:02:43]} 6. Nf5 {[%clk 0:02:56]}  O-O {[%clk 0:02:28]} 7. Nxe7+ {[%clk 0:02:56]}  Qxe7 {[%clk 0:02:29]} 8. Nd5 {[%clk 0:02:56]}  Qe5 {[%clk 0:02:24]} 9. Bxf6 {[%clk 0:02:39]}  gxf6 {[%clk 0:02:24]} 10. c3 {[%clk 0:02:37]}  Ne7 {[%clk 0:02:11]} 11. Nxe7+ {[%clk 0:02:26]}  Qxe7 {[%clk 0:02:12]} 12. h4 {[%clk 0:02:07]}  d6 {[%clk 0:02:09]} 13. Qd2 {[%clk 0:02:05]}  Be6 {[%clk 0:01:59]} 14. g4 {[%clk 0:01:55]}  d5 {[%clk 0:01:29]} 15. Qf4 {[%clk 0:01:48]}  Rfd8 {[%clk 0:01:05]} 16. e3 {[%clk 0:01:41]}  d4 {[%clk 0:00:56]} 17. Bg2 {[%clk 0:01:05]}  dxe3 {[%clk 0:00:33]} 18. fxe3 {[%clk 0:01:05]}  Bd5 {[%clk 0:00:23]} 19. e4 {[%clk 0:00:35]}  Re8 {[%clk 0:00:12]} 20. O-O-O {[%clk 0:00:35]}  Bxa2 {[%clk 0:00:05]} 21. g5 {[%clk 0:00:35]}  fxg5 {[%clk 0:00:02]} 22. hxg5 {[%clk 0:00:36]}  Qe6 {[%clk 0:00:02]} 23. Qh4 {[%clk 0:00:36]}  Qg6 {[%clk 0:00:03]} 24. Rdf1 {[%clk 0:00:34]}  Re6 {[%clk 0:00:02]} 25. Rf6 {[%clk 0:00:30]}  Rxf6 {[%clk 0:00:03]} 26. gxf6 {[%clk 0:00:31]}  Re8 {[%clk 0:00:02]} 27. Bf3 {[%clk 0:00:29]}  Kh8 {[%clk 0:00:03]} 28. Qf4 {[%clk 0:00:26]}  Re6 {[%clk 0:00:02]} 29. e5 {[%clk 0:00:26]}  c6 {[%clk 0:00:02]} 30. Be4 {[%clk 0:00:26]}  Rxf6 {[%clk 0:00:00]} 31. exf6 {[%clk 0:00:25]} 1-0


[Site "https://www.chess.com"]

[Event "Titled Tuesday Blitz August 22 Early 2023"]
[White "Serban, Cristian-Stefan"]
[Black "Palchuk, Andrii"]
[WhiteFideId "1241443"]
[BlackFideId "14176688"]
[WhiteElo "2466"]
[BlackElo "2627"]
[Result "0-1"]
[Round "3"]
[TimeControl "180+1"]
[Date "2023.08.22"]
[WhiteClock "0:00:11"]
[BlackClock "0:00:07"]
[Board "105"]

1. d4 {[%clk 0:03:00]}  Nf6 {[%clk 0:02:48]} 2. Bf4 {[%clk 0:02:58]}  d5 {[%clk 0:02:48]} 3. e3 {[%clk 0:02:58]}  c5 {[%clk 0:02:49]} 4. Nf3 {[%clk 0:02:58]}  Nc6 {[%clk 0:02:49]} 5. Nbd2 {[%clk 0:02:58]}  cxd4 {[%clk 0:02:49]} 6. exd4 {[%clk 0:02:58]}  Bf5 {[%clk 0:02:50]} 7. c3 {[%clk 0:02:54]}  e6 {[%clk 0:02:48]} 8. Qb3 {[%clk 0:02:54]}  Qc8 {[%clk 0:02:48]} 9. Ne5 {[%clk 0:02:50]}  Be7 {[%clk 0:02:49]} 10. Nxc6 {[%clk 0:02:38]}  bxc6 {[%clk 0:02:48]} 11. Qa4 {[%clk 0:02:27]}  a5 {[%clk 0:02:45]} 12. Nf3 {[%clk 0:02:24]}  Nd7 {[%clk 0:02:40]} 13. Ne5 {[%clk 0:02:22]}  Nxe5 {[%clk 0:02:40]} 14. Bxe5 {[%clk 0:02:22]}  O-O {[%clk 0:02:40]} 15. Be2 {[%clk 0:02:22]}  Qd7 {[%clk 0:01:51]} 16. O-O {[%clk 0:02:22]}  Bd6 {[%clk 0:01:51]} 17. Bxd6 {[%clk 0:02:22]}  Qxd6 {[%clk 0:01:52]} 18. Rac1 {[%clk 0:02:19]}  Rfb8 {[%clk 0:01:51]} 19. b3 {[%clk 0:02:19]}  c5 {[%clk 0:01:48]} 20. Bf3 {[%clk 0:02:08]}  Ra7 {[%clk 0:00:59]} 21. Rfd1 {[%clk 0:02:08]}  Qe7 {[%clk 0:00:54]} 22. c4 {[%clk 0:02:03]}  cxd4 {[%clk 0:00:51]} 23. Rxd4 {[%clk 0:02:02]}  Rc8 {[%clk 0:00:46]} 24. Rcd1 {[%clk 0:01:17]}  dxc4 {[%clk 0:00:45]} 25. Rxc4 {[%clk 0:01:17]}  Rxc4 {[%clk 0:00:44]} 26. Qxc4 {[%clk 0:01:18]}  h6 {[%clk 0:00:43]} 27. h3 {[%clk 0:01:14]}  Rc7 {[%clk 0:00:39]} 28. Qb5 {[%clk 0:01:13]}  Rc5 {[%clk 0:00:29]} 29. Qb8+ {[%clk 0:01:13]}  Kh7 {[%clk 0:00:29]} 30. Rd8 {[%clk 0:01:13]}  Rc1+ {[%clk 0:00:28]} 31. Kh2 {[%clk 0:01:14]}  Rc2 {[%clk 0:00:27]} 32. Rh8+ {[%clk 0:01:12]}  Kg6 {[%clk 0:00:27]} 33. a4 {[%clk 0:00:41]}  Qg5 {[%clk 0:00:20]} 34. Qg3 {[%clk 0:00:19]}  Qxg3+ {[%clk 0:00:19]} 35. Kxg3 {[%clk 0:00:20]}  Rc3 {[%clk 0:00:17]} 36. Ra8 {[%clk 0:00:19]}  Rxb3 {[%clk 0:00:17]} 37. Rxa5 {[%clk 0:00:19]}  Kf6 {[%clk 0:00:12]} 38. Ra7 {[%clk 0:00:19]}  Ra3 {[%clk 0:00:12]} 39. a5 {[%clk 0:00:19]}  e5 {[%clk 0:00:13]} 40. Kh2 {[%clk 0:00:18]}  e4 {[%clk 0:00:13]} 41. Bg4 {[%clk 0:00:18]}  Bg6 {[%clk 0:00:06]} 42. a6 {[%clk 0:00:16]}  Ra2 {[%clk 0:00:05]} 43. Kg3 {[%clk 0:00:15]}  h5 {[%clk 0:00:06]} 44. Bc8 {[%clk 0:00:15]}  h4+ {[%clk 0:00:06]} 45. Kxh4 {[%clk 0:00:15]}  Rxf2 {[%clk 0:00:07]} 46. Kg3 {[%clk 0:00:16]}  e3 {[%clk 0:00:06]} 47. Bb7 {[%clk 0:00:14]}  Ra2 {[%clk 0:00:06]} 48. Ra8 {[%clk 0:00:15]}  Bf5 {[%clk 0:00:05]} 49. Re8 {[%clk 0:00:12]}  Be6 {[%clk 0:00:05]} 50. Rd8 {[%clk 0:00:11]}  e2 {[%clk 0:00:05]} 51. Kf2 {[%clk 0:00:12]}  Bc4 {[%clk 0:00:06]} 52. Ke1 {[%clk 0:00:11]}  Ra1+ {[%clk 0:00:06]} 53. Kf2 {[%clk 0:00:12]}  e1=Q+ {[%clk 0:00:06]} 54. Kf3 {[%clk 0:00:11]}  Qe2+ {[%clk 0:00:07]} 0-1


[Site "https://www.chess.com"]

[Event "Titled Tuesday Blitz August 22 Early 2023"]
[White "SmirnovAlexandrA"]
[Black "Ljukin, Sergei"]
[BlackFideId "14102200"]
[WhiteElo "2626"]
[BlackElo "2466"]
[Result "1-0"]
[Round "3"]
[TimeControl "180+1"]
[Date "2023.08.22"]
[WhiteClock "0:00:29"]
[BlackClock "0:00:00"]
[Board "106"]

1. e4 {[%clk 0:02:52]}  e6 {[%clk 0:03:00]} 2. d4 {[%clk 0:02:52]}  d5 {[%clk 0:03:00]} 3. Nc3 {[%clk 0:02:53]}  Bb4 {[%clk 0:03:00]} 4. e5 {[%clk 0:02:52]}  Ne7 {[%clk 0:02:59]} 5. Qg4 {[%clk 0:02:51]}  c5 {[%clk 0:02:57]} 6. a3 {[%clk 0:02:42]}  Bxc3+ {[%clk 0:02:56]} 7. bxc3 {[%clk 0:02:42]}  Qc7 {[%clk 0:02:57]} 8. Qxg7 {[%clk 0:02:40]}  Rg8 {[%clk 0:02:57]} 9. Qxh7 {[%clk 0:02:41]}  cxd4 {[%clk 0:02:57]} 10. Ne2 {[%clk 0:02:23]}  Nbc6 {[%clk 0:02:55]} 11. f4 {[%clk 0:02:19]}  Bd7 {[%clk 0:02:55]} 12. Qd3 {[%clk 0:02:18]}  dxc3 {[%clk 0:02:55]} 13. Rb1 {[%clk 0:02:17]}  O-O-O {[%clk 0:02:51]} 14. h4 {[%clk 0:02:17]}  d4 {[%clk 0:02:49]} 15. h5 {[%clk 0:02:15]}  Nf5 {[%clk 0:02:48]} 16. h6 {[%clk 0:02:11]}  Rg6 {[%clk 0:02:48]} 17. h7 {[%clk 0:02:09]}  Rh8 {[%clk 0:02:48]} 18. Qf3 {[%clk 0:01:54]}  Na5 {[%clk 0:02:28]} 19. Rh3 {[%clk 0:01:42]}  Nc4 {[%clk 0:02:11]} 20. g4 {[%clk 0:01:39]}  Bc6 {[%clk 0:02:09]} 21. Qd3 {[%clk 0:01:39]}  Rxg4 {[%clk 0:02:06]} 22. Qxc4 {[%clk 0:01:38]}  Nh4 {[%clk 0:01:51]} 23. Nxd4 {[%clk 0:01:28]}  Rxh7 {[%clk 0:01:18]} 24. Be3 {[%clk 0:01:20]}  Bg2 {[%clk 0:00:39]} 25. Qxc7+ {[%clk 0:01:06]}  Kxc7 {[%clk 0:00:38]} 26. Rh2 {[%clk 0:00:59]}  a6 {[%clk 0:00:37]} 27. Rb3 {[%clk 0:00:55]}  Bd5 {[%clk 0:00:30]} 28. Rxc3+ {[%clk 0:00:54]}  Kd7 {[%clk 0:00:30]} 29. Kf2 {[%clk 0:00:49]}  Rhg7 {[%clk 0:00:25]} 30. Ne2 {[%clk 0:00:47]}  Ng2 {[%clk 0:00:24]} 31. Bc5 {[%clk 0:00:40]}  Nxf4 {[%clk 0:00:22]} 32. Bd6 {[%clk 0:00:41]}  Ng6 {[%clk 0:00:16]} 33. Rc7+ {[%clk 0:00:41]}  Kd8 {[%clk 0:00:16]} 34. Nc3 {[%clk 0:00:37]}  Bc6 {[%clk 0:00:15]} 35. Bxa6 {[%clk 0:00:36]}  Nh4 {[%clk 0:00:08]} 36. Bxb7 {[%clk 0:00:35]}  Bxb7 {[%clk 0:00:07]} 37. Rxb7 {[%clk 0:00:36]}  Rf4+ {[%clk 0:00:08]} 38. Ke3 {[%clk 0:00:32]}  Rf3+ {[%clk 0:00:07]} 39. Kd4 {[%clk 0:00:31]}  Rg4+ {[%clk 0:00:07]} 40. Ne4 {[%clk 0:00:31]}  Nf5+ {[%clk 0:00:00]} 41. Kc5 {[%clk 0:00:29]} 1-0


[Site "https://www.chess.com"]

[Event "Titled Tuesday Blitz August 22 Early 2023"]
[White "Turayev, Shahruh"]
[Black "Maus7"]
[WhiteFideId "14003856"]
[WhiteElo "2625"]
[BlackElo "2464"]
[Result "1-0"]
[Round "3"]
[TimeControl "180+1"]
[Date "2023.08.22"]
[WhiteClock "0:00:12"]
[BlackClock "0:00:01"]
[Board "107"]

1. e4 {[%clk 0:03:00]}  e6 {[%clk 0:02:58]} 2. Nc3 {[%clk 0:03:01]}  d5 {[%clk 0:02:59]} 3. exd5 {[%clk 0:03:01]}  exd5 {[%clk 0:03:00]} 4. d4 {[%clk 0:03:02]}  c6 {[%clk 0:02:54]} 5. Bd3 {[%clk 0:03:02]}  Bd6 {[%clk 0:02:55]} 6. Qf3 {[%clk 0:03:01]}  Qf6 {[%clk 0:02:51]} 7. Be3 {[%clk 0:02:56]}  Qxf3 {[%clk 0:02:42]} 8. Nxf3 {[%clk 0:02:56]}  Ne7 {[%clk 0:02:43]} 9. O-O-O {[%clk 0:02:48]}  Bg4 {[%clk 0:02:41]} 10. Rde1 {[%clk 0:02:41]}  Bxf3 {[%clk 0:02:40]} 11. gxf3 {[%clk 0:02:42]}  Nd7 {[%clk 0:02:26]} 12. Bg5 {[%clk 0:02:35]}  f6 {[%clk 0:02:25]} 13. Bh4 {[%clk 0:02:35]}  Kf7 {[%clk 0:02:24]} 14. Bg3 {[%clk 0:02:34]}  Bb4 {[%clk 0:02:18]} 15. a3 {[%clk 0:02:23]}  Bxc3 {[%clk 0:02:18]} 16. bxc3 {[%clk 0:02:24]}  b5 {[%clk 0:02:14]} 17. h4 {[%clk 0:02:20]}  Rae8 {[%clk 0:02:03]} 18. h5 {[%clk 0:02:19]}  a6 {[%clk 0:01:47]} 19. Kd2 {[%clk 0:02:03]}  Nc8 {[%clk 0:01:44]} 20. Rxe8 {[%clk 0:01:40]}  Kxe8 {[%clk 0:01:45]} 21. Bf5 {[%clk 0:01:17]}  Ndb6 {[%clk 0:01:41]} 22. Re1+ {[%clk 0:01:07]}  Kf7 {[%clk 0:01:41]} 23. Bc7 {[%clk 0:01:07]}  Nc4+ {[%clk 0:01:30]} 24. Kd3 {[%clk 0:01:07]}  Nb2+ {[%clk 0:01:18]} 25. Kd2 {[%clk 0:01:08]}  Nc4+ {[%clk 0:01:19]} 26. Kc1 {[%clk 0:01:06]}  g6 {[%clk 0:00:49]} 27. Be6+ {[%clk 0:00:50]}  Kg7 {[%clk 0:00:47]} 28. Bf4 {[%clk 0:00:37]}  Re8 {[%clk 0:00:36]} 29. h6+ {[%clk 0:00:36]}  Kf8 {[%clk 0:00:34]} 30. Kd1 {[%clk 0:00:25]}  Nb2+ {[%clk 0:00:32]} 31. Kd2 {[%clk 0:00:25]}  Nc4+ {[%clk 0:00:33]} 32. Kd1 {[%clk 0:00:24]}  N8b6 {[%clk 0:00:25]} 33. Re2 {[%clk 0:00:17]}  Na4 {[%clk 0:00:19]} 34. Bd2 {[%clk 0:00:10]}  Nxa3 {[%clk 0:00:14]} 35. Bd7 {[%clk 0:00:08]}  Rxe2 {[%clk 0:00:13]} 36. Kxe2 {[%clk 0:00:09]}  Ke7 {[%clk 0:00:09]} 37. Bxc6 {[%clk 0:00:09]}  Ke6 {[%clk 0:00:08]} 38. Be8 {[%clk 0:00:07]}  g5 {[%clk 0:00:02]} 39. Bg6 {[%clk 0:00:07]}  Ke7 {[%clk 0:00:01]} 40. Bxh7 {[%clk 0:00:07]}  Kf7 {[%clk 0:00:01]} 41. Bd3 {[%clk 0:00:08]}  Nb6 {[%clk 0:00:01]} 42. f4 {[%clk 0:00:08]}  Nac4 {[%clk 0:00:01]} 43. fxg5 {[%clk 0:00:08]}  fxg5 {[%clk 0:00:02]} 44. Bxg5 {[%clk 0:00:08]}  a5 {[%clk 0:00:02]} 45. h7 {[%clk 0:00:09]}  Kg7 {[%clk 0:00:03]} 46. Bf6+ {[%clk 0:00:10]}  Kxf6 {[%clk 0:00:04]} 47. h8=Q+ {[%clk 0:00:10]}  Ke6 {[%clk 0:00:03]} 48. Qh6+ {[%clk 0:00:10]}  Kd7 {[%clk 0:00:04]} 49. Bxc4 {[%clk 0:00:11]}  Nxc4 {[%clk 0:00:01]} 50. Qa6 {[%clk 0:00:12]} 1-0


[Site "https://www.chess.com"]

[Event "Titled Tuesday Blitz August 22 Early 2023"]
[White "Perera Alfonso, Rene Humberto"]
[Black "Gimenez Aguirre, Alejo Ismael"]
[WhiteFideId "3514722"]
[BlackFideId "32041667"]
[WhiteElo "2463"]
[BlackElo "2624"]
[Result "1-0"]
[Round "3"]
[TimeControl "180+1"]
[Date "2023.08.22"]
[WhiteClock "0:01:38"]
[BlackClock "0:00:57"]
[Board "108"]

1. e4 {[%clk 0:02:57]}  c5 {[%clk 0:02:51]} 2. Nf3 {[%clk 0:02:52]}  g6 {[%clk 0:02:48]} 3. d4 {[%clk 0:02:52]}  cxd4 {[%clk 0:02:48]} 4. Nxd4 {[%clk 0:02:52]}  Bg7 {[%clk 0:02:48]} 5. Nc3 {[%clk 0:02:52]}  Nc6 {[%clk 0:02:47]} 6. Be3 {[%clk 0:02:52]}  Nf6 {[%clk 0:02:47]} 7. Bc4 {[%clk 0:02:52]}  O-O {[%clk 0:02:48]} 8. Bb3 {[%clk 0:02:51]}  d6 {[%clk 0:02:47]} 9. f3 {[%clk 0:02:50]}  Bd7 {[%clk 0:02:48]} 10. Qd2 {[%clk 0:02:50]}  Nxd4 {[%clk 0:02:48]} 11. Bxd4 {[%clk 0:02:50]}  b5 {[%clk 0:02:49]} 12. h4 {[%clk 0:02:49]}  b4 {[%clk 0:02:49]} 13. Nd5 {[%clk 0:02:48]}  Nxd5 {[%clk 0:02:48]} 14. Bxd5 {[%clk 0:02:46]}  Rc8 {[%clk 0:02:49]} 15. Bxg7 {[%clk 0:02:45]}  Kxg7 {[%clk 0:02:48]} 16. h5 {[%clk 0:02:46]}  Rh8 {[%clk 0:02:47]} 17. h6+ {[%clk 0:02:45]}  Kf8 {[%clk 0:02:45]} 18. O-O-O {[%clk 0:02:45]}  Qb6 {[%clk 0:02:44]} 19. Kb1 {[%clk 0:02:39]}  e6 {[%clk 0:02:24]} 20. Bb3 {[%clk 0:02:38]}  Ke7 {[%clk 0:02:24]} 21. e5 {[%clk 0:02:35]}  d5 {[%clk 0:02:10]} 22. Qg5+ {[%clk 0:02:34]}  Kf8 {[%clk 0:02:11]} 23. f4 {[%clk 0:02:27]}  Qd8 {[%clk 0:02:00]} 24. Qg3 {[%clk 0:02:25]}  f6 {[%clk 0:01:56]} 25. f5 {[%clk 0:02:19]}  exf5 {[%clk 0:01:53]} 26. Bxd5 {[%clk 0:02:16]}  Qe7 {[%clk 0:01:41]} 27. Rhe1 {[%clk 0:02:10]}  f4 {[%clk 0:01:20]} 28. Qxf4 {[%clk 0:02:07]}  Bf5 {[%clk 0:01:21]} 29. Bb3 {[%clk 0:01:59]}  Re8 {[%clk 0:01:02]} 30. exf6 {[%clk 0:01:49]}  Qxf6 {[%clk 0:01:01]} 31. Qxb4+ {[%clk 0:01:40]}  Re7 {[%clk 0:00:57]} 32. Rd8# {[%clk 0:01:38]} 1-0


[Site "https://www.chess.com"]